fUST/lending_fUST_20250126
["ID","MTS","AMOUNT","RATE_DAILY","PERIOD"]
[350466875,1737905437839,-250.21619049,0.00016573,2]
[350466877,1737905437849,-500.0,0.00016573,2]
[350466878,1737905437858,-500.0,0.00016573,2]
[350466879,1737905437867,-500.0,0.00016573,2]
[350466880,1737905437877,-492.82665704,0.00016573,2]
[350466881,1737905437886,-500.0,0.00016573,2]
[350466882,1737905437895,-500.0,0.00016573,2]
[350466883,1737905437905,-500.0,0.00016573,2]
[350466884,1737905437914,-500.0,0.00016573,2]
[350466885,1737905437923,-151.0,0.00016574,2]
[350466886,1737905437932,-918.628016,0.00016574,2]
[350466887,1737905437943,-918.628016,0.00016574,2]
[350466888,1737905437952,-151.0,0.00016574,2]
[350466889,1737905437961,-1083.56,0.00016574,2]
[350466890,1737905437970,-1083.56,0.00016574,2]
[350466891,1737905437980,-1083.56,0.00016574,2]
[350466893,1737905437989,-1083.56,0.00016574,2]
[350466894,1737905437999,-1083.56,0.00016574,2]
[350466895,1737905438009,-151.547755,0.00016575,2]
[350466896,1737905438018,-151.0,0.00016575,2]
[350466897,1737905438027,-151.0,0.00016575,2]
[350466899,1737905438037,-151.0,0.00016575,2]
[350466900,1737905438046,-151.0,0.00016575,2]
[350466901,1737905438055,-151.0,0.00016575,2]
[350466902,1737905438064,-151.0,0.00016575,2]
[350466903,1737905438073,-151.0,0.00016575,2]
[350466904,1737905438082,-151.0,0.00016575,2]
[350466905,1737905438091,-151.0,0.00016575,2]
[350466906,1737905438100,-151.0,0.00016575,2]
[350466907,1737905438109,-212.192229,0.00016575,2]
[350466908,1737905438118,-212.192229,0.00016575,2]
[350466909,1737905438127,-212.192229,0.00016575,2]
[350466910,1737905438137,-212.192229,0.00016575,2]
[350466911,1737905438146,-212.192229,0.00016575,2]
[350466912,1737905438155,-151.0,0.00016575,2]
[350466913,1737905438164,-212.192229,0.00016575,2]
[350466914,1737905438173,-212.192229,0.00016575,2]
[350466915,1737905438182,-212.192229,0.00016575,2]
[350466916,1737905438193,-500.0,0.00016575,2]
[350466917,1737905438202,-186.71,0.00016575,2]
[350466918,1737905438211,-159.896973,0.00016575,2]
[350466919,1737905438220,-159.896973,0.00016575,2]
[350466920,1737905438232,-159.896973,0.00016575,2]
[350466921,1737905438244,-159.896971,0.00016575,2]
[350466922,1737905438257,-465.93342911,0.00016575,2]
[350466923,1737905438266,-500.0,0.00016575,2]
[350466924,1737905438277,-492.579232,0.00016575,2]
[350466925,1737905438286,-492.579232,0.00016575,2]
[350466926,1737905438295,-492.579232,0.00016575,2]
[350466927,1737905438305,-492.579232,0.00016575,2]
[350466928,1737905438314,-500.0,0.00016575,2]
[350466929,1737905438325,-492.579232,0.00016575,2]
[350466930,1737905438334,-492.579232,0.00016575,2]
[350466932,1737905438343,-492.579232,0.00016575,2]
[350466934,1737905438353,-492.579232,0.00016575,2]
[350466935,1737905438363,-230.18554724,0.00016575,2]
[350466937,1737905438372,-500.0,0.00016575,2]
[350466939,1737905438381,-423.767,0.00016575,2]
[350466940,1737905438390,-505.26713758,0.00016575,2]
[350466942,1737905438401,-500.0,0.00016575,2]
[350466944,1737905438411,-500.0,0.00016575,2]
[350466945,1737905438420,-500.0,0.00016575,2]
[350466947,1737905438430,-214.87820329,0.00016575,2]
[350466949,1737905438441,-442.65939489,0.00016575,2]
[350466950,1737905438450,-151.0,0.00016575,2]
[350466951,1737905438461,-151.0,0.00016575,2]
[350466952,1737905438471,-151.0,0.00016575,2]
[350466953,1737905438481,-151.0,0.00016575,2]
[350466954,1737905438490,-500.0,0.00016575,2]
[350466955,1737905438500,-500.0,0.00016575,2]
[350466956,1737905438510,-281.969117,0.00016575,2]
[350466957,1737905438520,-500.0,0.00016575,2]
[350466958,1737905438529,-500.0,0.00016575,2]
[350466959,1737905438539,-500.0,0.00016575,2]
[350466960,1737905438548,-500.0,0.00016575,2]
[350466961,1737905438558,-532.28991709,0.00016575,2]
[350466962,1737905438568,-500.0,0.00016575,2]
[350466963,1737905438578,-625.80185227,0.00016575,2]
[350466964,1737905438588,-500.0,0.00016575,2]
[350466965,1737905438598,-500.0,0.00016575,2]
[350466966,1737905438608,-500.0,0.00016575,2]
[350466967,1737905438617,-500.0,0.00016575,2]
[350466968,1737905438627,-500.0,0.00016575,2]
[350466969,1737905438637,-500.0,0.00016575,2]
[350466970,1737905438647,-500.0,0.00016575,2]
[350466971,1737905438657,-500.0,0.00016575,2]
[350466972,1737905438667,-500.0,0.00016575,2]
[350466973,1737905438677,-500.0,0.00016575,2]
[350466974,1737905438686,-507.99029297,0.00016575,2]
[350466975,1737905438696,-500.0,0.00016575,2]
[350466976,1737905438706,-500.0,0.00016575,2]
[350466977,1737905438715,-500.0,0.00016575,2]
[350466978,1737905438725,-500.0,0.00016575,2]
[350466979,1737905438735,-500.0,0.00016575,2]
[350466980,1737905438745,-510.2323291,0.00016575,2]
[350466981,1737905438755,-500.0,0.00016575,2]
[350466982,1737905438764,-500.0,0.00016575,2]
[350466983,1737905438775,-500.0,0.00016575,2]
[350466984,1737905438784,-500.0,0.00016575,2]
[350466985,1737905438795,-500.0,0.00016575,2]
[350466986,1737905438804,-500.0,0.00016575,2]
[350466987,1737905438814,-500.0,0.00016575,2]
[350466988,1737905438824,-500.0,0.00016575,2]
[350466989,1737905438833,-500.0,0.00016575,2]
[350466990,1737905438842,-500.0,0.00016575,2]
[350466991,1737905438852,-500.0,0.00016575,2]
[350466992,1737905438861,-500.0,0.00016575,2]
[350466993,1737905438871,-500.0,0.00016575,2]
[350466994,1737905438881,-918.628016,0.00016575,2]
[350466995,1737905438891,-437.5651564,0.00016575,2]
[350466996,1737905438901,-500.0,0.00016575,2]
[350466997,1737905438911,-918.628023,0.00016575,2]
[350466998,1737905438920,-500.0,0.00016575,2]
[350466999,1737905438930,-500.0,0.00016575,2]
[350467000,1737905438939,-500.0,0.00016575,2]
[350467001,1737905438949,-500.0,0.00016575,2]
[350467002,1737905438958,-500.0,0.00016575,2]
[350467003,1737905438968,-544.49,0.00016575,2]
[350467004,1737905438978,-500.0,0.00016575,2]
[350467005,1737905438987,-554.48,0.00016575,2]
[350467006,1737905438997,-577.87854298,0.00016575,2]
[350467007,1737905439006,-500.0,0.00016575,2]
[350467008,1737905439016,-986.3,0.00016575,2]
[350467009,1737905439026,-500.0,0.00016575,2]
[350467010,1737905439035,-500.0,0.00016575,2]
[350467011,1737905439044,-500.0,0.00016575,2]
[350467012,1737905439054,-151.0,0.00016575,2]
[350467013,1737905439063,-500.0,0.00016575,2]
[350467014,1737905439073,-500.0,0.00016575,2]
[350467015,1737905439082,-500.0,0.00016575,2]
[350467016,1737905439092,-500.0,0.00016575,2]
[350467017,1737905439101,-458.73,0.00016575,2]
[350467018,1737905439111,-500.0,0.00016575,2]
[350467019,1737905439122,-500.0,0.00016575,2]
[350467020,1737905439132,-301.21,0.00016575,2]
[350467021,1737905439141,-500.0,0.00016575,2]
[350467022,1737905439150,-500.0,0.00016575,2]
[350467023,1737905439160,-471.1,0.00016575,2]
[350467024,1737905439169,-500.0,0.00016575,2]
[350467025,1737905439180,-661.39,0.00016575,2]
[350467026,1737905439189,-500.0,0.00016575,2]
[350467027,1737905439315,-1507.84,0.00016575,2]
[350467028,1737905439325,-500.0,0.00016575,2]
[350467029,1737905439335,-1853.64,0.00016575,2]
[350467030,1737905439345,-353.69,0.00016575,2]
[350467031,1737905439355,-500.0,0.00016575,2]
[350467032,1737905439364,-500.0,0.00016575,2]
[350467033,1737905439374,-462.45,0.00016575,2]
[350467034,1737905439383,-500.0,0.00016575,2]
[350467035,1737905439393,-500.0,0.00016575,2]
[350467036,1737905439403,-500.0,0.00016575,2]
[350467037,1737905439411,-544.11251378,0.00016575,2]
[350467038,1737905439420,-500.0,0.00016575,2]
[350467039,1737905439430,-500.0,0.00016575,2]
[350467040,1737905439439,-500.0,0.00016575,2]
[350467041,1737905439448,-5599.2,0.00016575,2]
[350467042,1737905439458,-841.25,0.00016575,2]
[350467043,1737905439467,-500.0,0.00016575,2]
[350467044,1737905439477,-552.77,0.00016575,2]
[350467045,1737905439486,-500.0,0.00016575,2]
[350467046,1737905439495,-500.0,0.00016575,2]
[350467047,1737905439504,-912.17,0.00016575,2]
[350467048,1737905439514,-500.0,0.00016575,2]
[350467049,1737905439524,-2884.05,0.00016575,2]
[350467050,1737905439533,-13531.75,0.00016575,2]
[350467051,1737905439543,-500.0,0.00016575,2]
[350467052,1737905439552,-500.0,0.00016575,2]
[350467053,1737905439561,-583.3,0.00016575,2]
[350467054,1737905439570,-500.0,0.00016575,2]
[350467055,1737905439580,-500.0,0.00016575,2]
[350467056,1737905439590,-500.0,0.00016575,2]
[350467057,1737905439599,-500.0,0.00016575,2]
[350467058,1737905439607,-500.0,0.00016575,2]
[350467059,1737905439617,-557.75,0.00016575,2]
[350467060,1737905439626,-1369.1,0.00016575,2]
[350467061,1737905439635,-500.0,0.00016575,2]
[350467062,1737905439645,-500.0,0.00016575,2]
[350467063,1737905439654,-500.0,0.00016575,2]
[350467064,1737905439663,-1345.86,0.00016575,2]
[350467065,1737905439673,-500.0,0.00016575,2]
[350467067,1737905439682,-405.11,0.00016575,2]
[350467068,1737905439692,-588.6,0.00016575,2]
[350467069,1737905439702,-3044.35,0.00016575,2]
[350467070,1737905439712,-500.0,0.00016575,2]
[350467071,1737905439721,-500.0,0.00016575,2]
[350467072,1737905439731,-500.0,0.00016575,2]
[350467073,1737905439741,-500.0,0.00016575,2]
[350467074,1737905439751,-1274.86,0.00016575,2]
[350467075,1737905439760,-500.0,0.00016575,2]
[350467076,1737905439770,-500.0,0.00016575,2]
[350467077,1737905439780,-500.0,0.00016575,2]
[350467078,1737905439789,-500.0,0.00016575,2]
[350467079,1737905439799,-500.0,0.00016575,2]
[350467080,1737905439808,-1453.6,0.00016575,2]
[350467081,1737905439817,-186.26375421,0.00016575,2]
[350467082,1737905439828,-500.0,0.00016575,2]
[350467083,1737905439837,-500.71156414,0.000166,2]
[350467084,1737905439847,-1083.56,0.00016678,2]
[350467085,1737905439856,-2304.0,0.00016679,2]
[350467086,1737905439866,-395.0,0.00016679,2]
[350467087,1737905439876,-1083.56,0.00016711,2]
[350467088,1737905439887,-1083.56,0.00016711,2]
[350467089,1737905439897,-1083.56,0.00016711,2]
[350467090,1737905439907,-1083.56,0.00016711,2]
[350467091,1737905439917,-151.0,0.00016712,2]
[350467092,1737905439927,-151.0,0.00016712,2]
[350467093,1737905439937,-151.0,0.00016712,2]
[350467094,1737905439947,-151.0,0.00016712,2]
[350467095,1737905439958,-151.0,0.00016712,2]
[350467097,1737905439967,-151.0,0.00016712,2]
[350467099,1737905439977,-175.74108,0.00016712,2]
[350467101,1737905439986,-212.192229,0.00016712,2]
[350467103,1737905439995,-212.192228,0.00016712,2]
[350467105,1737905440004,-217.17143254,0.00016712,2]
[350467107,1737905440014,-500.0,0.00016712,2]
[350467108,1737905440023,-500.0,0.00016712,2]
[350467109,1737905440033,-500.0,0.00016712,2]
[350467111,1737905440042,-500.0,0.00016712,2]
[350467112,1737905440052,-500.0,0.00016712,2]
[350467113,1737905440062,-614.7,0.00016712,2]
[350467115,1737905440071,-500.0,0.00016712,2]
[350467117,1737905440080,-500.0,0.00016712,2]
[350467118,1737905440090,-500.0,0.00016712,2]
[350467119,1737905440100,-500.0,0.00016712,2]
[350467120,1737905440110,-500.0,0.00016712,2]
[350467121,1737905440119,-500.0,0.00016712,2]
[350467122,1737905440128,-500.0,0.00016712,2]
[350467123,1737905440137,-500.0,0.00016712,2]
[350467124,1737905440148,-500.0,0.00016712,2]
[350467125,1737905440158,-500.0,0.00016712,2]
[350467126,1737905440168,-500.0,0.00016712,2]
[350467127,1737905440178,-500.0,0.00016712,2]
[350467128,1737905440188,-500.0,0.00016712,2]
[350467129,1737905440199,-500.0,0.00016712,2]
[350467130,1737905440208,-500.0,0.00016712,2]
[350467132,1737905440218,-500.0,0.00016712,2]
[350467134,1737905440228,-595.12,0.00016712,2]
[350467136,1737905440240,-500.0,0.00016712,2]
[350467137,1737905440250,-500.0,0.00016712,2]
[350467139,1737905440260,-500.0,0.00016712,2]
[350467140,1737905440275,-500.0,0.00016712,2]
[350467141,1737905440284,-500.0,0.00016712,2]
[350467142,1737905440295,-500.0,0.00016712,2]
[350467143,1737905440304,-500.0,0.00016712,2]
[350467144,1737905440315,-500.0,0.00016712,2]
[350467145,1737905440326,-334.7736983,0.00016712,2]
[350467146,1737905440336,-500.0,0.00016712,2]
[350467147,1737905440351,-500.0,0.00016712,2]
[350467148,1737905440361,-500.0,0.00016712,2]
[350467149,1737905440370,-381.52868599,0.00016712,2]
[350467150,1737905440380,-500.0,0.00016712,2]
[350467152,1737905440390,-500.0,0.00016712,2]
[350467153,1737905440399,-500.0,0.00016712,2]
[350467154,1737905440408,-500.0,0.00016712,2]
[350467155,1737905440418,-500.0,0.00016712,2]
[350467156,1737905440427,-500.0,0.00016712,2]
[350467157,1737905440437,-639.58,0.00016712,2]
[350467158,1737905440448,-500.0,0.00016712,2]
[350467159,1737905440458,-500.0,0.00016712,2]
[350467160,1737905440467,-986.3,0.00016712,2]
[350467161,1737905440477,-500.0,0.00016712,2]
[350467162,1737905440487,-500.0,0.00016712,2]
[350467163,1737905440497,-518.56,0.00016712,2]
[350467164,1737905440507,-500.0,0.00016712,2]
[350467165,1737905440516,-500.0,0.00016712,2]
[350467166,1737905440526,-500.0,0.00016712,2]
[350467167,1737905440536,-524.2832216,0.00016712,2]
[350467168,1737905440546,-362.93,0.00016712,2]
[350467169,1737905440555,-500.0,0.00016712,2]
[350467170,1737905440564,-500.0,0.00016712,2]
[350467171,1737905440574,-500.0,0.00016712,2]
[350467172,1737905440584,-661.39,0.00016712,2]
[350467173,1737905440593,-1507.84,0.00016712,2]
[350467174,1737905440603,-500.0,0.00016712,2]
[350467175,1737905440613,-1853.64,0.00016712,2]
[350467176,1737905440623,-500.0,0.00016712,2]
[350467177,1737905440632,-309.86,0.00016712,2]
[350467178,1737905440642,-441.11,0.00016712,2]
[350467179,1737905440651,-500.0,0.00016712,2]
[350467180,1737905440661,-159.01,0.00016712,2]
[350467181,1737905440671,-500.0,0.00016712,2]
[350467182,1737905440680,-500.0,0.00016712,2]
[350467183,1737905440690,-500.0,0.00016712,2]
[350467184,1737905440699,-5599.2,0.00016712,2]
[350467185,1737905440708,-841.25,0.00016712,2]
[350467186,1737905440718,-500.0,0.00016712,2]
[350467187,1737905440727,-500.0,0.00016712,2]
[350467188,1737905440737,-500.0,0.00016712,2]
[350467189,1737905440746,-912.17,0.00016712,2]
[350467190,1737905440756,-500.0,0.00016712,2]
[350467191,1737905440766,-2884.05,0.00016712,2]
[350467192,1737905440775,-13531.75,0.00016712,2]
[350467193,1737905440785,-500.0,0.00016712,2]
[350467194,1737905440794,-500.0,0.00016712,2]
[350467195,1737905440804,-500.0,0.00016712,2]
[350467196,1737905440813,-500.0,0.00016712,2]
[350467197,1737905440823,-500.0,0.00016712,2]
[350467198,1737905440832,-500.0,0.00016712,2]
[350467199,1737905440841,-1369.1,0.00016712,2]
[350467200,1737905440850,-500.0,0.00016712,2]
[350467201,1737905440860,-500.0,0.00016712,2]
[350467202,1737905440869,-500.0,0.00016712,2]
[350467203,1737905440879,-1345.86,0.00016712,2]
[350467204,1737905440889,-500.0,0.00016712,2]
[350467205,1737905440898,-3044.35,0.00016712,2]
[350467206,1737905440908,-500.0,0.00016712,2]
[350467207,1737905440918,-500.0,0.00016712,2]
[350467208,1737905440928,-1274.86,0.00016712,2]
[350467209,1737905440939,-500.0,0.00016712,2]
[350467210,1737905440962,-500.0,0.00016712,2]
[350467211,1737905440972,-500.0,0.00016712,2]
[350467212,1737905440982,-500.0,0.00016712,2]
[350467213,1737905440993,-500.0,0.00016712,2]
[350467214,1737905441003,-1453.6,0.00016712,2]
[350467215,1737905441016,-500.0,0.00016712,2]
[350467216,1737905441025,-151.0,0.00016717,2]
[350467217,1737905441034,-151.0,0.00016726,2]
[350467218,1737905441044,-1083.56,0.00016848,2]
[350467219,1737905441053,-1083.56,0.00016848,2]
[350467220,1737905441065,-1083.56,0.00016848,2]
[350467221,1737905441078,-1083.56,0.00016848,2]
[350467222,1737905441088,-1083.73084844,0.00016848,2]
[350467223,1737905441098,-151.0,0.00016849,2]
[350467224,1737905441107,-151.0,0.00016849,2]
[350467225,1737905441116,-151.0,0.00016849,2]
[350467226,1737905441126,-151.0,0.00016849,2]
[350467227,1737905441137,-500.0,0.00016849,2]
[350467228,1737905441146,-500.0,0.00016849,2]
[350467229,1737905441157,-500.0,0.00016849,2]
[350467230,1737905441166,-500.0,0.00016849,2]
[350467231,1737905441176,-500.0,0.00016849,2]
[350467232,1737905441186,-500.0,0.00016849,2]
[350467233,1737905441197,-500.0,0.00016849,2]
[350467234,1737905441206,-500.0,0.00016849,2]
[350467235,1737905441215,-500.0,0.00016849,2]
[350467236,1737905441225,-416.98658667,0.00016849,2]
[350467237,1737905441238,-500.0,0.00016849,2]
[350467238,1737905441247,-369.45751949,0.00016849,2]
[350467239,1737905441257,-500.0,0.00016849,2]
[350467240,1737905441266,-500.0,0.00016849,2]
[350467241,1737905441276,-500.0,0.00016849,2]
[350467242,1737905441286,-500.0,0.00016849,2]
[350467243,1737905441296,-500.0,0.00016849,2]
[350467244,1737905441305,-500.0,0.00016849,2]
[350467245,1737905441315,-500.0,0.00016849,2]
[350467246,1737905441325,-500.0,0.00016849,2]
[350467247,1737905441335,-500.0,0.00016849,2]
[350467248,1737905441345,-500.0,0.00016849,2]
[350467249,1737905441354,-500.0,0.00016849,2]
[350467250,1737905441364,-500.0,0.00016849,2]
[350467251,1737905441373,-392.37917441,0.00016849,2]
[350467252,1737905441382,-500.0,0.00016849,2]
[350467253,1737905441391,-500.0,0.00016849,2]
[350467254,1737905441401,-500.0,0.00016849,2]
[350467255,1737905441410,-500.0,0.00016849,2]
[350467256,1737905441419,-500.0,0.00016849,2]
[350467257,1737905441428,-500.0,0.00016849,2]
[350467258,1737905441437,-500.0,0.00016849,2]
[350467259,1737905441448,-500.0,0.00016849,2]
[350467260,1737905441457,-500.0,0.00016849,2]
[350467261,1737905441466,-500.0,0.00016849,2]
[350467262,1737905441476,-500.0,0.00016849,2]
[350467263,1737905441485,-524.50377402,0.00016849,2]
[350467264,1737905441494,-986.3,0.00016849,2]
[350467265,1737905441505,-500.0,0.00016849,2]
[350467266,1737905441514,-500.0,0.00016849,2]
[350467267,1737905441523,-500.0,0.00016849,2]
[350467268,1737905441532,-500.0,0.00016849,2]
[350467269,1737905441542,-500.0,0.00016849,2]
[350467270,1737905441551,-500.0,0.00016849,2]
[350467271,1737905441561,-500.0,0.00016849,2]
[350467272,1737905441570,-661.39,0.00016849,2]
[350467273,1737905441579,-1507.84,0.00016849,2]
[350467274,1737905441588,-1853.64,0.00016849,2]
[350467275,1737905441597,-291.58,0.00016849,2]
[350467276,1737905441606,-336.28,0.00016849,2]
[350467277,1737905441616,-500.0,0.00016849,2]
[350467278,1737905441625,-5599.2,0.00016849,2]
[350467279,1737905441634,-841.25,0.00016849,2]
[350467280,1737905441643,-500.0,0.00016849,2]
[350467281,1737905441653,-500.0,0.00016849,2]
[350467282,1737905441662,-500.0,0.00016849,2]
[350467283,1737905441671,-912.17,0.00016849,2]
[350467284,1737905441680,-500.0,0.00016849,2]
[350467285,1737905441691,-2884.05,0.00016849,2]
[350467286,1737905441700,-13531.75,0.00016849,2]
[350467287,1737905441709,-533.55,0.00016849,2]
[350467288,1737905441720,-500.0,0.00016849,2]
[350467289,1737905441758,-642.74758776,0.00016849,2]
[350467290,1737905441767,-500.0,0.00016849,2]
[350467291,1737905441776,-500.0,0.00016849,2]
[350467292,1737905441786,-1369.1,0.00016849,2]
[350467293,1737905441795,-238.49,0.00016849,2]
[350467294,1737905441805,-500.0,0.00016849,2]
[350467295,1737905441815,-1345.86,0.00016849,2]
[350467296,1737905441825,-500.0,0.00016849,2]
[350467297,1737905441834,-3044.35,0.00016849,2]
[350467298,1737905441844,-500.0,0.00016849,2]
[350467299,1737905441853,-1274.86,0.00016849,2]
[350467300,1737905441863,-500.0,0.00016849,2]
[350467301,1737905441872,-500.0,0.00016849,2]
[350467302,1737905441882,-500.0,0.00016849,2]
[350467303,1737905441891,-500.0,0.00016849,2]
[350467304,1737905441901,-1453.6,0.00016849,2]
[350467305,1737905441910,-500.0,0.00016849,2]
[350467306,1737905441919,-13584.56,0.000169,2]
[350467307,1737905441929,-5159.30069051,0.000169,2]
[350467308,1737905441943,-500.0,0.00016986,2]
[350467309,1737905441952,-331.5,0.00016986,2]
[350467310,1737905441962,-500.0,0.00016986,2]
[350467311,1737905441971,-500.0,0.00016986,2]
[350467312,1737905441980,-500.0,0.00016986,2]
[350467313,1737905441990,-500.0,0.00016986,2]
[350467314,1737905441999,-489.63723213,0.00016986,2]
[350467315,1737905442008,-500.0,0.00016986,2]
[350467316,1737905442018,-425.17297494,0.00016986,2]
[350467317,1737905442027,-500.0,0.00016986,2]
[350467318,1737905442037,-500.0,0.00016986,2]
[350467319,1737905442046,-500.0,0.00016986,2]
[350467320,1737905442055,-500.0,0.00016986,2]
[350467321,1737905442065,-500.0,0.00016986,2]
[350467322,1737905442074,-627.31,0.00016986,2]
[350467323,1737905442083,-500.0,0.00016986,2]
[350467324,1737905442092,-500.0,0.00016986,2]
[350467325,1737905442101,-500.0,0.00016986,2]
[350467326,1737905442111,-500.0,0.00016986,2]
[350467327,1737905442120,-500.0,0.00016986,2]
[350467328,1737905442129,-500.0,0.00016986,2]
[350467329,1737905442138,-500.0,0.00016986,2]
[350467330,1737905442147,-38.01613177,0.00016986,2]
[350467331,1737905442423,-763.062,0.00016438,2]
[350467341,1737905443149,-4132.798,0.00016438,2]
[350467342,1737905443158,-4261.11122914,0.00016575,2]
[350467359,1737905446357,-500.0,0.00016438,2]
[350467360,1737905446367,-500.0,0.00016438,2]
[350467361,1737905446377,-634.74877086,0.00016575,2]
[350467362,1737905446387,-1544.524,0.00016679,2]
[350467364,1737905446396,-2073.72722914,0.00016712,2]
[350467377,1737905535039,155.956111,0.000196,20]
[350467378,1737905538516,160.816285,0.00013973,2]
[350467379,1737905592877,155.349278,0.000196,20]
[350467381,1737905728166,300.0,0.0002,20]
[350467383,1737905976730,1000.0,0.00014246,2]
[350467384,1737905976779,1000.0,0.00014969,2]
[350467389,1737906496859,160.816285,0.00013973,2]
[350467438,1737906632583,-157.115,0.0001614,2]
[350467440,1737906632594,-779.17857514,0.00016337,2]
[350467442,1737906632605,-265.0,0.0001637,2]
[350467444,1737906632618,-300.0,0.00016436,2]
[350467446,1737906632628,-499.59238058,0.00016437,2]
[350467449,1737906632637,-500.0,0.00016437,2]
[350467452,1737906632647,-500.0,0.00016437,2]
[350467455,1737906632657,-358.36614418,0.00016437,2]
[350467457,1737906632666,-500.0,0.00016437,2]
[350467459,1737906632676,-500.0,0.00016437,2]
[350467461,1737906632686,-500.0,0.00016437,2]
[350467463,1737906632696,-500.0,0.00016437,2]
[350467465,1737906632705,-500.0,0.00016437,2]
[350467468,1737906632715,-500.0,0.00016437,2]
[350467470,1737906632725,-500.0,0.00016437,2]
[350467472,1737906632735,-500.0,0.00016437,2]
[350467473,1737906632746,-500.0,0.00016437,2]
[350467476,1737906632756,-500.0,0.00016437,2]
[350467478,1737906632766,-500.0,0.00016437,2]
[350467480,1737906632776,-500.0,0.00016437,2]
[350467482,1737906632786,-500.0,0.00016437,2]
[350467483,1737906632795,-500.0,0.00016437,2]
[350467485,1737906632805,-500.0,0.00016437,2]
[350467487,1737906632814,-500.0,0.00016437,2]
[350467489,1737906632824,-500.0,0.00016437,2]
[350467491,1737906632833,-500.0,0.00016437,2]
[350467493,1737906632842,-500.0,0.00016437,2]
[350467495,1737906632852,-500.0,0.00016437,2]
[350467497,1737906632862,-500.0,0.00016437,2]
[350467499,1737906632871,-500.0,0.00016437,2]
[350467501,1737906632880,-500.0,0.00016437,2]
[350467503,1737906632890,-500.0,0.00016437,2]
[350467505,1737906632900,-500.0,0.00016437,2]
[350467507,1737906632909,-500.0,0.00016437,2]
[350467509,1737906632919,-500.0,0.00016437,2]
[350467511,1737906632928,-500.0,0.00016437,2]
[350467513,1737906632938,-500.0,0.00016437,2]
[350467515,1737906632947,-500.0,0.00016437,2]
[350467517,1737906632957,-500.0,0.00016437,2]
[350467519,1737906632967,-500.0,0.00016437,2]
[350467521,1737906632976,-500.0,0.00016437,2]
[350467523,1737906632987,-500.0,0.00016437,2]
[350467525,1737906632996,-500.0,0.00016437,2]
[350467527,1737906633006,-500.0,0.00016437,2]
[350467529,1737906633016,-500.0,0.00016437,2]
[350467531,1737906633026,-500.0,0.00016437,2]
[350467533,1737906633036,-500.0,0.00016437,2]
[350467535,1737906633046,-500.0,0.00016437,2]
[350467537,1737906633055,-500.0,0.00016437,2]
[350467539,1737906633065,-500.0,0.00016437,2]
[350467541,1737906633075,-500.0,0.00016437,2]
[350467543,1737906633085,-500.0,0.00016437,2]
[350467545,1737906633094,-500.0,0.00016437,2]
[350467547,1737906633103,-500.0,0.00016437,2]
[350467549,1737906633114,-500.0,0.00016437,2]